bitfinex-derivatives/quotes_BTCF0:USTF0_20250630
["timestamp","ask_amount","ask_price","bid_price","bid_amount"]
[1751299314385,2.00124407,107630.0,107620.0,0.2957928]
[1751299314584,2.50124407,107630.0,107620.0,0.2957928]
[1751299314890,0.1857928,107620.0,107610.0,0.278694]
[1751299315186,1.07272207,107620.0,107610.0,0.278694]
[1751299315585,0.88692927,107620.0,107610.0,0.278694]
[1751299316087,0.516,107620.0,107610.0,0.278694]
[1751299316389,1.2017927,107620.0,107610.0,0.278694]
[1751299317492,1.75436,107620.0,107610.0,0.278694]
[1751299317786,1.75436,107620.0,107610.0,0.298694]
[1751299317981,1.75432,107620.0,107610.0,0.94529664]
[1751299318788,1.75432,107620.0,107610.0,0.628694]
[1751299319091,1.016,107620.0,107610.0,0.94529664]
[1751299319282,1.75424,107620.0,107610.0,0.99639664]
[1751299319590,1.016,107620.0,107610.0,0.99639664]
[1751299319890,0.4685629,107620.0,107610.0,1.35719664]
[1751299320189,0.5072,107630.0,107620.0,0.1857927]
[1751299320389,0.5593,107630.0,107620.0,1.08050932]
[1751299320882,0.4139,107630.0,107620.0,1.08050932]
[1751299321191,0.9139,107630.0,107620.0,1.08050932]
[1751299321589,0.8618,107630.0,107620.0,1.08050932]
[1751299321776,0.8618,107630.0,107620.0,0.81320668]
[1751299321983,0.8618,107630.0,107620.0,0.76390668]
[1751299322288,0.9138,107630.0,107620.0,1.08050932]
[1751299322588,0.965,107630.0,107620.0,1.08050932]
[1751299323290,0.98784245,107630.0,107620.0,1.08050932]
[1751299324390,0.98784245,107630.0,107620.0,1.15591132]
[1751299325091,0.98784245,107630.0,107620.0,0.83930868]
[1751299325296,0.98784245,107630.0,107620.0,1.15591132]
[1751299326494,1.17361795,107630.0,107620.0,1.10481132]
[1751299326685,0.98784245,107630.0,107620.0,0.78820868]
[1751299327493,0.98784245,107630.0,107620.0,1.10481132]
[1751299328198,0.52384245,107630.0,107620.0,1.46561132]
[1751299328394,0.52384245,107630.0,107620.0,1.61981132]
[1751299328996,0.02384245,107630.0,107620.0,1.61981132]
[1751299331894,0.07334245,107630.0,107620.0,1.15581132]
[1751299332096,0.07334245,107630.0,107620.0,1.74813132]
[1751299332296,0.48714245,107630.0,107620.0,1.74813132]
[1751299332503,0.48697785,107630.0,107620.0,1.69705132]
[1751299332998,0.4643,107630.0,107620.0,1.69705132]
[1751299333398,0.9643,107630.0,107620.0,1.69705132]
[1751299333902,0.9643,107630.0,107620.0,1.38044868]
[1751299334194,0.9643,107630.0,107620.0,1.69705132]
[1751299334399,0.9643,107630.0,107620.0,1.74565132]
[1751299336500,0.98699467,107630.0,107620.0,1.74565132]
[1751299341996,0.9643,107630.0,107620.0,1.74565132]
[1751299346809,0.9643,107630.0,107620.0,1.42904868]
[1751299347112,0.9643,107630.0,107620.0,1.74565132]
[1751299347413,0.6035,107630.0,107620.0,1.8005345]
[1751299352513,1.46667814,107630.0,107620.0,1.43437186]
[1751299352714,0.9643,107630.0,107620.0,1.7509745]
[1751299353518,0.6035,107630.0,107620.0,1.5204945]
[1751299353815,0.5505,107630.0,107620.0,1.5204945]
[1751299354015,0.5505,107630.0,107620.0,1.5705945]
[1751299355820,0.5505,107630.0,107620.0,1.6709945]
[1751299356624,0.0505,107630.0,107620.0,1.6709945]
[1751299357119,0.4113,107630.0,107620.0,0.84309186]
[1751299357324,0.77690264,107630.0,107620.0,0.84309186]
[1751299357526,0.4603,107630.0,107620.0,1.1596945]
[1751299358128,0.9603,107630.0,107620.0,1.1596945]
[1751299358814,0.9603,107630.0,107620.0,1.8003345]
[1751299359124,0.5505,107630.0,107620.0,1.5700945]
[1751299359321,0.5505,107630.0,107620.0,2.1610545]
[1751299359523,0.0505,107630.0,107620.0,2.1610545]
[1751299360927,0.0505,107630.0,107620.0,2.2628545]
[1751299364921,0.001,107630.0,107620.0,2.20797132]
[1751299365127,0.001,107630.0,107620.0,2.2629192]
[1751299365429,0.001,107630.0,107620.0,2.28111542]
[1751299366729,0.0517,107640.0,107630.0,0.1857755]
[1751299366932,0.0517,107640.0,107630.0,1.28952]
[1751299367132,0.61014,107650.0,107640.0,0.1857582]
[1751299367433,0.68375931,107650.0,107640.0,0.83236084]
[1751299367627,0.68375931,107650.0,107640.0,0.88156084]
[1751299367822,0.68375931,107650.0,107640.0,0.89083874]
[1751299369233,0.66184,107650.0,107640.0,0.9457806]
[1751299370427,0.66184,107650.0,107640.0,0.62917796]
[1751299370628,0.847581,107650.0,107640.0,0.57997796]
[1751299370932,1.11954364,107650.0,107640.0,0.38070006]
[1751299371234,1.85450364,107650.0,107640.0,0.1857582]
[1751299371731,2.37642132,107650.0,107640.0,0.1857582]
[1751299373837,2.27642132,107650.0,107640.0,0.1857582]
[1751299374038,2.37642132,107650.0,107640.0,0.1857582]
[1751299378137,2.05981868,107650.0,107640.0,0.1857582]
[1751299378439,2.37642132,107650.0,107640.0,0.1857582]
[1751299379137,2.05981868,107650.0,107640.0,0.1857582]
[1751299379340,2.37642132,107650.0,107640.0,0.1857582]
[1751299382933,2.37642132,107650.0,107620.0,0.47045054]
[1751299382934,2.72647232,107650.0,107620.0,0.47045054]
[1751299383135,1.22397814,107630.0,107620.0,0.72417754]
[1751299383338,2.05761814,107630.0,107620.0,0.19701398]
[1751299383638,0.1857928,107620.0,107610.0,0.24073716]
[1751299383835,0.91489544,107620.0,107610.0,0.39073716]
[1751299384341,1.21253844,107620.0,107610.0,0.39073716]
[1751299384536,1.71253844,107620.0,107610.0,0.39073716]
[1751299384839,1.72200731,107620.0,107610.0,0.39073716]
[1751299385335,1.72200731,107620.0,107610.0,0.3357953]
[1751299385532,1.72200731,107620.0,107610.0,0.15]
[1751299386441,1.72200731,107620.0,107610.0,0.33581]
[1751299386744,1.72200731,107620.0,107610.0,0.15]
[1751299386938,1.77080731,107620.0,107610.0,0.15]
[1751299387139,1.77080731,107620.0,107610.0,0.33581]
[1751299388036,1.77080731,107620.0,107610.0,0.15]
[1751299388543,1.77080731,107620.0,107610.0,0.18581]
[1751299388744,1.77080731,107620.0,107600.0,0.3967414]
[1751299388745,0.18581,107610.0,107600.0,0.3967414]
[1751299388929,1.74823264,107610.0,107600.0,0.653828]
[1751299389241,1.74823264,107610.0,107600.0,0.6073869]
[1751299390540,1.74823264,107610.0,107600.0,0.55244504]
[1751299391741,2.24823264,107610.0,107600.0,0.55244504]
[1751299393338,2.34823264,107610.0,107600.0,0.55244504]
[1751299394147,2.34823264,107610.0,107600.0,0.5358273]
[1751299395340,2.24823264,107610.0,107600.0,0.5358273]
[1751299396049,1.93163,107610.0,107600.0,0.5358273]
[1751299396239,2.24823264,107610.0,107600.0,0.5358273]
[1751299396639,2.34823264,107610.0,107600.0,0.5358273]
[1751299397447,2.03163,107610.0,107600.0,0.5358273]
[1751299397649,2.34823264,107610.0,107600.0,0.5358273]
[1751299398243,0.1858273,107600.0,107590.0,0.37474111]
[1751299398447,0.6494273,107600.0,107590.0,0.74923356]
[1751299398645,0.96602994,107600.0,107590.0,0.70277296]
[1751299398841,0.96602994,107600.0,107590.0,0.65631256]
[1751299399042,0.96602994,107600.0,107590.0,0.64182011]
[1751299399246,0.96602994,107600.0,107590.0,0.00092941]
[1751299399460,1.06602994,107600.0,107590.0,0.00092941]
[1751299399643,0.1858618,107580.0,107570.0,0.38334226]
[1751299399849,1.95718444,107580.0,107570.0,0.72288702]
[1751299400155,2.01008444,107580.0,107570.0,0.72288702]
[1751299400853,2.05998444,107580.0,107570.0,0.72288702]
[1751299401647,2.55998444,107580.0,107570.0,0.72288702]
[1751299401857,2.2433818,107580.0,107570.0,0.72288702]
[1751299402051,2.55998444,107580.0,107570.0,0.72288702]
[1751299402552,2.55998444,107580.0,107570.0,0.7084004]
[1751299403252,2.5691036,107580.0,107570.0,0.7084004]
[1751299403950,2.1934818,107580.0,107570.0,0.7084004]
[1751299404254,2.51008444,107580.0,107570.0,0.7084004]
[1751299406056,2.1934818,107580.0,107570.0,0.7588004]
[1751299407754,2.51008444,107580.0,107570.0,0.7588004]
[1751299407958,2.51008444,107580.0,107570.0,0.6658644]
[1751299408257,2.65918444,107580.0,107570.0,0.38]
[1751299408454,2.65918444,107580.0,107570.0,0.16453007]
[1751299408857,0.1858791,107570.0,107560.0,0.28418547]
[1751299409062,1.01368174,107570.0,107560.0,0.6724656]
[1751299409754,1.51368174,107570.0,107560.0,0.7224656]
[1751299410663,0.8608,107570.0,107560.0,1.04106824]
[1751299410960,1.7788391,107570.0,107560.0,1.02731881]
[1751299411754,1.7788391,107570.0,107560.0,0.71071617]
[1751299413258,2.09544174,107570.0,107560.0,0.71071617]
[1751299413453,2.19624174,107570.0,107560.0,0.66071617]
[1751299414364,2.19624174,107570.0,107560.0,0.60981617]
[1751299415070,2.19624174,107570.0,107560.0,0.65821617]
[1751299416467,1.8300391,107570.0,107560.0,0.65821617]
[1751299416669,1.8300391,107570.0,107560.0,0.70871617]
[1751299416963,1.0466791,107570.0,107560.0,1.03909973]
[1751299417166,1.7785991,107570.0,107560.0,1.02531881]
[1751299417362,1.7785991,107570.0,107560.0,0.70871617]
[1751299417562,1.7785991,107570.0,107560.0,1.02531881]
[1751299419962,1.7785991,107570.0,107560.0,1.0392235]
[1751299420661,0.8608,107570.0,107560.0,1.0392235]
[1751299420868,1.5926,107570.0,107560.0,1.0392235]
[1751299421361,0.5,107570.0,107560.0,1.0392235]
[1751299421568,0.3608,107580.0,107570.0,0.1858791]
[1751299421768,0.38238916,107580.0,107570.0,1.57993244]
[1751299422071,0.3608,107580.0,107570.0,1.76585244]
[1751299422256,0.38239095,107580.0,107570.0,1.76585244]
[1751299423165,0.56825275,107580.0,107570.0,1.2633298]
[1751299423373,0.56825275,107580.0,107570.0,0.6748098]
[1751299424068,1.1351018,107580.0,107570.0,0.6748098]
[1751299424268,1.15650448,107580.0,107570.0,0.99141244]
[1751299424668,1.65650448,107580.0,107570.0,0.99141244]
[1751299424874,1.6351018,107580.0,107570.0,0.99141244]
[1751299425169,1.6351018,107580.0,107570.0,0.6231098]
[1751299425976,1.6832018,107580.0,107570.0,0.6231098]
[1751299427575,1.8264018,107580.0,107570.0,0.6231098]
[1751299428074,1.8264018,107580.0,107570.0,0.93971244]
[1751299428268,1.84785863,107580.0,107570.0,0.93971244]
[1751299428770,1.8264018,107580.0,107570.0,0.93971244]
[1751299429070,1.8264018,107580.0,107570.0,0.6231098]
[1751299429268,1.84786473,107580.0,107570.0,0.93971244]
[1751299431472,1.84786473,107580.0,107570.0,0.56991244]
[1751299431674,1.89916473,107580.0,107570.0,0.5704098]
[1751299433576,1.8777018,107580.0,107570.0,0.62535166]
[1751299433971,2.19430444,107580.0,107570.0,0.62535166]
[1751299434676,1.8777018,107580.0,107570.0,0.62535166]
[1751299436578,1.8777018,107580.0,107570.0,0.25535166]
[1751299436780,1.8777018,107580.0,107570.0,0.63535166]
[1751299437272,1.8777018,107580.0,107570.0,0.29196189]
[1751299438378,1.8777018,107580.0,107570.0,0.23702003]
[1751299439477,2.19430444,107580.0,107570.0,0.23702003]
[1751299440380,2.19430444,107580.0,107570.0,0.22248933]
[1751299440982,1.2892618,107580.0,107570.0,0.22248933]
[1751299441184,1.69108,107580.0,107570.0,0.91909197]
[1751299441386,1.8769418,107580.0,107570.0,0.97039197]
[1751299441582,1.2379618,107580.0,107570.0,0.97039197]
[1751299441783,1.2379618,107580.0,107570.0,1.02589197]
[1751299441784,1.8256418,107580.0,107570.0,1.02589197]
[1751299443983,1.8256418,107580.0,107570.0,0.70928933]
[1751299444186,1.8256418,107580.0,107570.0,1.02589197]
[1751299444385,1.63978,107580.0,107570.0,1.02589197]
[1751299444577,1.8256418,107580.0,107570.0,1.02589197]
[1751299445784,1.8256418,107580.0,107570.0,0.70928933]
[1751299445974,1.8764418,107580.0,107570.0,0.70928933]
[1751299446179,1.8764418,107580.0,107570.0,1.02589197]
[1751299447087,1.8256418,107580.0,107570.0,1.02589197]
[1751299448185,1.63978,107580.0,107570.0,1.08083383]
[1751299448583,1.23056,107580.0,107570.0,1.02589197]
[1751299448784,0.6432,107580.0,107570.0,1.07849197]
[1751299449286,0.8290618,107580.0,107570.0,0.76188933]
[1751299449486,1.1898618,107580.0,107570.0,1.02589197]
[1751299449686,1.2405618,107580.0,107570.0,1.02589197]
[1751299450892,1.2405618,107580.0,107570.0,1.04042237]
[1751299452289,0.9115,107580.0,107570.0,1.04042237]
[1751299452491,0.8608,107580.0,107570.0,0.72381973]
[1751299452688,0.8608,107580.0,107570.0,1.04042237]
[1751299454081,0.8608,107580.0,107570.0,1.09536423]
[1751299454995,0.8608,107580.0,107570.0,0.77876159]
[1751299455288,1.0466618,107580.0,107570.0,1.09536423]
[1751299456492,1.0466618,107580.0,107570.0,1.04042237]
[1751299456994,0.8608,107580.0,107570.0,1.04042237]
[1751299457997,1.0466618,107580.0,107570.0,1.04042237]
[1751299458390,1.0466618,107580.0,107570.0,0.72381973]
[1751299458590,1.0466618,107580.0,107570.0,1.04042237]
[1751299461198,1.0466618,107580.0,107570.0,1.09536423]
[1751299463694,1.0466618,107580.0,107570.0,0.77876159]
[1751299463998,1.0466618,107580.0,107570.0,1.09536423]
[1751299464790,1.0990618,107580.0,107570.0,0.77876159]
[1751299464990,1.1545618,107580.0,107570.0,1.09536423]
[1751299465194,1.1545618,107580.0,107570.0,1.04042237]
[1751299465696,1.1545618,107580.0,107570.0,1.09536423]
[1751299466103,1.1545618,107580.0,107570.0,0.67196159]
[1751299466294,1.1545618,107580.0,107570.0,0.65743119]
[1751299466494,1.47116444,107580.0,107570.0,0.27743119]
[1751299466698,1.47116444,107580.0,107570.0,0.43743119]
[1751299466999,1.47116444,107580.0,107570.0,0.38248933]
[1751299467602,1.1545618,107580.0,107570.0,0.38248933]
[1751299467799,1.47116444,107580.0,107570.0,0.38248933]
[1751299469302,1.57116444,107580.0,107570.0,0.38248933]
[1751299469506,1.57116444,107580.0,107570.0,0.03661023]
[1751299470297,0.1858791,107570.0,107560.0,0.37130946]
[1751299470504,1.75690174,107570.0,107560.0,0.70483696]
[1751299471203,1.95454474,107570.0,107560.0,0.70483696]
[1751299471505,1.96395892,107570.0,107560.0,0.70483696]
[1751299472004,1.96395892,107570.0,107560.0,0.6498951]
[1751299472305,1.96395892,107570.0,107560.0,0.67838007]
[1751299472499,2.46395892,107570.0,107560.0,0.67838007]
[1751299474110,2.46395892,107570.0,107560.0,0.68038007]
[1751299475711,2.45454474,107570.0,107560.0,0.68038007]
[1751299475904,2.46401681,107570.0,107560.0,0.68038007]
[1751299476208,2.1379421,107570.0,107560.0,0.68038007]
[1751299477808,2.14736591,107570.0,107560.0,0.68038007]
[1751299480409,1.94972291,107570.0,107560.0,0.68038007]
[1751299480610,2.26632555,107570.0,107560.0,0.68038007]
[1751299481309,1.94972291,107570.0,107560.0,0.68038007]
[1751299481509,2.26632555,107570.0,107560.0,0.68038007]
[1751299483112,2.26632555,107570.0,107560.0,0.63392127]
[1751299483316,2.36632555,107570.0,107560.0,0.63392127]
[1751299483614,2.36632555,107570.0,107560.0,0.59731104]
[1751299484913,2.04972291,107570.0,107560.0,0.59731104]
[1751299485118,2.36632555,107570.0,107560.0,0.59731104]
[1751299485310,2.26632555,107570.0,107560.0,0.59731104]
[1751299486412,1.94972291,107570.0,107560.0,0.59731104]
[1751299486613,2.26632555,107570.0,107560.0,0.59731104]
[1751299486813,2.36632555,107570.0,107560.0,0.59731104]
[1751299488017,2.04972291,107570.0,107560.0,0.59731104]
[1751299488218,2.36632555,107570.0,107560.0,0.59731104]
[1751299488916,2.36632555,107570.0,107560.0,0.39731104]
[1751299489422,2.36632555,107570.0,107560.0,0.21141464]
[1751299489720,2.36632555,107570.0,107560.0,0.39731104]
[1751299491517,2.04972291,107570.0,107560.0,0.39731104]
[1751299491819,2.36632555,107570.0,107560.0,0.39731104]
[1751299492319,2.36632555,107570.0,107560.0,0.43392127]
[1751299494521,2.36632555,107570.0,107560.0,0.39731104]
[1751299495519,2.36632555,107570.0,107560.0,0.43392127]
[1751299496826,2.36632555,107570.0,107560.0,0.39731104]
[1751299499221,2.04972291,107570.0,107560.0,0.39731104]
[1751299499425,2.36632555,107570.0,107560.0,0.43392127]
[1751299499815,2.36632555,107570.0,107560.0,0.63392127]
[1751299500021,1.0466791,107570.0,107560.0,0.95052391]
[1751299500216,0.8608,107570.0,107560.0,1.10852391]
[1751299500417,1.08552,107570.0,107560.0,1.10852391]
[1751299500819,0.5,107570.0,107560.0,2.01064655]
[1751299501224,0.5,107570.0,107560.0,1.71237554]
[1751299502321,0.5,107570.0,107560.0,1.69842267]
[1751299505023,1.0466791,107570.0,107560.0,1.11290267]
[1751299505229,0.6858791,107570.0,107560.0,1.69830267]
[1751299505527,0.6858791,107570.0,107560.0,1.11290267]
[1751299505729,0.6858791,107570.0,107560.0,1.69822267]
[1751299506721,0.5,107570.0,107560.0,1.69822267]
[1751299507028,0.6858791,107570.0,107560.0,1.69822267]
[1751299507724,1.0466791,107570.0,107560.0,1.69822267]
[1751299508029,1.0466791,107570.0,107560.0,1.73486561]
[1751299508329,0.8608,107570.0,107560.0,1.73486561]
[1751299508727,0.8608,107570.0,107560.0,1.73474561]
[1751299509626,1.0466791,107570.0,107560.0,0.83294297]
[1751299509833,1.36328174,107570.0,107560.0,0.78054297]
[1751299510028,1.0466791,107570.0,107560.0,0.78054297]
[1751299510230,1.0466791,107570.0,107560.0,1.09714561]
[1751299510829,0.8608,107570.0,107560.0,1.09714561]
[1751299511030,0.8608,107570.0,107560.0,0.78054297]
[1751299511335,0.8608,107570.0,107560.0,1.68222561]
[1751299511633,0.8608,107570.0,107560.0,1.09714561]
[1751299511827,0.8608,107570.0,107560.0,1.68222561]
[1751299512931,0.5,107570.0,107560.0,1.68222561]
[1751299513231,0.5,107570.0,107560.0,2.04289497]
[1751299514026,0.5,107570.0,107560.0,2.00625203]
[1751299516034,0.3608,107580.0,107570.0,0.1858791]
[1751299516341,0.3608,107580.0,107570.0,1.07701516]
[1751299518438,1.30556,107590.0,107580.0,0.1858618]
[1751299518637,1.30556,107590.0,107580.0,0.97936444]
[1751299518838,1.30556,107590.0,107580.0,1.56416444]
[1751299519044,0.3608,107590.0,107580.0,1.56416444]
[1751299519235,1.17427,107590.0,107580.0,1.56416444]
[1751299519543,1.3601145,107590.0,107580.0,1.56416444]
[1751299519735,1.17427,107590.0,107580.0,1.56416444]
[1751299520539,1.17427,107590.0,107580.0,1.5785264]
[1751299521148,1.17427,107590.0,107580.0,1.67005559]
[1751299522551,1.17427,107590.0,107580.0,1.67944332]
[1751299524542,1.3601145,107590.0,107580.0,1.36284068]
[1751299524743,1.3601145,107590.0,107580.0,1.34847872]
[1751299524944,1.3601145,107590.0,107580.0,1.66508136]
[1751299525851,1.3601145,107590.0,107580.0,1.62437583]
[1751299526442,1.67671714,107590.0,107580.0,0.60668546]
[1751299526642,1.78041714,107590.0,107580.0,0.60668546]
[1751299526849,2.46485714,107590.0,107580.0,0.24668546]
[1751299527052,2.46485714,107590.0,107580.0,0.1958618]
[1751299527547,2.46485714,107590.0,107580.0,0.1858618]
[1751299528350,2.46485714,107590.0,107580.0,0.20010238]
[1751299528547,2.0482545,107590.0,107580.0,0.56010238]
[1751299529144,2.0482545,107590.0,107580.0,0.91329235]
[1751299529339,1.27797,107590.0,107580.0,0.91329235]
[1751299529544,1.4638145,107590.0,107580.0,0.91329235]
[1751299530048,1.27797,107590.0,107580.0,0.91329235]
[1751299530247,1.4638145,107590.0,107580.0,0.91411445]
[1751299530648,1.27797,107590.0,107580.0,0.91411445]
[1751299531146,1.27797,107590.0,107580.0,1.00240178]
[1751299531548,1.22777,107590.0,107580.0,1.00240178]
[1751299532253,1.4136145,107590.0,107580.0,1.00240178]
[1751299532448,1.4667145,107590.0,107580.0,1.00240178]
[1751299533646,1.4667145,107590.0,107580.0,0.97499235]
[1751299533848,1.4667145,107590.0,107580.0,0.60668971]
[1751299534456,1.78331714,107590.0,107580.0,0.60668971]
[1751299534651,1.88331714,107590.0,107580.0,0.23668971]
[1751299534857,1.88331714,107590.0,107580.0,0.20010238]
[1751299536957,1.88331714,107590.0,107580.0,0.1858618]
[1751299537652,1.88331714,107590.0,107570.0,0.17598813]
[1751299537960,1.64390444,107580.0,107570.0,0.4723324]
[1751299538258,1.74390444,107580.0,107570.0,0.4723324]
[1751299538455,1.94154744,107580.0,107570.0,0.4723324]
[1751299538657,1.94154744,107580.0,107570.0,0.49975368]
[1751299538858,1.94154744,107580.0,107570.0,0.46760048]
[1751299539560,2.4384148,107580.0,107570.0,0.46760048]
[1751299539862,2.65501744,107580.0,107570.0,0.46760048]
[1751299540051,1.52423564,107580.0,107570.0,0.46760048]
[1751299540257,2.65497744,107580.0,107570.0,0.46760048]
[1751299540861,2.65497744,107580.0,107570.0,0.45328778]
[1751299541562,2.75497744,107580.0,107570.0,0.45328778]
[1751299542060,2.65497744,107580.0,107570.0,0.45328778]
[1751299542964,2.65497744,107580.0,107570.0,0.46710846]
[1751299544361,2.65497744,107580.0,107570.0,0.50369579]
[1751299546765,2.3383748,107580.0,107570.0,0.50369579]
[1751299547262,2.65497744,107580.0,107570.0,0.50369579]
[1751299547459,1.6135748,107580.0,107570.0,0.82029843]
[1751299547663,2.3382948,107580.0,107570.0,0.80647775]
[1751299548162,2.3382948,107580.0,107570.0,0.79358683]
[1751299549365,1.7543348,107580.0,107570.0,0.79358683]
[1751299549563,2.3382948,107580.0,107570.0,0.84528683]
[1751299549864,2.3382948,107580.0,107570.0,0.87272825]
[1751299550460,2.1406518,107580.0,107570.0,0.55612561]
[1751299550653,2.1406518,107580.0,107570.0,0.50442561]
[1751299551164,2.1406518,107580.0,107570.0,0.47698419]
[1751299551862,2.1406518,107580.0,107570.0,0.50442972]
[1751299553063,2.45725444,107580.0,107570.0,0.50442972]
[1751299553656,2.1406518,107580.0,107570.0,0.50442972]
[1751299553857,2.1406518,107580.0,107570.0,0.46245383]
[1751299554962,2.1406518,107580.0,107570.0,0.51395383]
[1751299555963,2.1406518,107580.0,107570.0,0.46245383]
[1751299556166,2.1406518,107580.0,107570.0,0.51739569]
[1751299556965,2.2507518,107580.0,107570.0,0.51739569]
[1751299557652,2.56735444,107580.0,107570.0,0.51739569]
[1751299558267,2.66735444,107580.0,107570.0,0.25245383]
[1751299558667,2.66735444,107580.0,107570.0,0.26697615]
[1751299559268,2.56735444,107580.0,107570.0,0.26697615]
[1751299560165,2.2507518,107580.0,107570.0,0.26697615]
[1751299560368,2.56735444,107580.0,107570.0,0.26697615]
[1751299560667,2.56735444,107580.0,107570.0,0.32191801]
[1751299561571,2.56735444,107580.0,107570.0,0.66191801]
[1751299561778,2.56707444,107580.0,107570.0,0.48191801]
[1751299562272,2.2504718,107580.0,107570.0,0.48191801]
[1751299564571,2.56707444,107580.0,107570.0,0.48191801]
[1751299568680,2.56707444,107580.0,107570.0,0.44533068]
[1751299568883,2.56707444,107580.0,107570.0,0.49586573]
[1751299570183,2.2504718,107580.0,107570.0,0.49586573]
[1751299571284,2.56707444,107580.0,107570.0,0.49586573]
[1751299572181,2.56707444,107580.0,107570.0,0.46844087]
[1751299572574,2.2504718,107580.0,107570.0,0.46844087]
[1751299572884,2.56707444,107580.0,107570.0,0.46844087]
[1751299574286,2.92787444,107580.0,107570.0,0.46844087]
[1751299575279,2.5565718,107580.0,107570.0,0.47926837]
[1751299575787,2.5565718,107580.0,107570.0,0.88018413]
[1751299576084,2.5565718,107580.0,107570.0,0.85267101]
[1751299576786,2.5565718,107580.0,107570.0,0.53606837]
[1751299583685,2.87317444,107580.0,107570.0,0.53606837]
[1751299583893,2.92677444,107580.0,107570.0,0.5067951]
[1751299584393,2.92677444,107580.0,107570.0,0.4545951]
[1751299584594,3.02677444,107580.0,107570.0,0.4684405]
[1751299585289,2.92677444,107580.0,107570.0,0.4684405]
[1751299587094,2.6101718,107580.0,107570.0,0.4684405]
[1751299587293,2.6101718,107580.0,107570.0,0.5201405]
[1751299588094,2.5556518,107580.0,107570.0,0.87799774]
[1751299588293,2.4444518,107580.0,107570.0,0.85047101]
[1751299589195,2.4444518,107580.0,107570.0,0.90541287]
[1751299590391,1.89767,107580.0,107570.0,0.90541287]
[1751299590590,1.89767,107580.0,107570.0,0.90577101]
[1751299591088,1.17427,107580.0,107570.0,0.96071287]
[1751299591685,1.17427,107580.0,107570.0,0.96071987]
[1751299592691,1.17427,107580.0,107570.0,0.92404032]
[1751299593099,1.17427,107580.0,107570.0,1.22064032]
[1751299593399,0.81347,107580.0,107570.0,1.22064032]
[1751299593600,0.81347,107580.0,107570.0,1.58144032]
[1751299594500,0.81347,107580.0,107570.0,2.16436032]
[1751299594700,1.5710009,107600.0,107590.0,0.1858445]
[1751299594902,1.5710009,107600.0,107590.0,0.5258445]
[1751299596105,2.3844709,107600.0,107590.0,0.1858445]
[1751299596401,2.3844709,107600.0,107590.0,0.5458445]
[1751299596904,2.3844709,107600.0,107590.0,0.1858445]
[1751299597202,2.3844709,107600.0,107590.0,0.4958445]
[1751299598107,2.70107354,107600.0,107590.0,0.5558445]
[1751299600206,2.65461264,107600.0,107590.0,0.5558445]
[1751299600909,2.65461264,107600.0,107590.0,0.1858445]
[1751299601108,2.65461264,107600.0,107590.0,0.4958445]
[1751299602202,2.75461264,107600.0,107590.0,0.1858445]
[1751299602408,2.78461264,107600.0,107590.0,0.1858445]
[1751299602610,0.1858445,107590.0,107580.0,0.64935612]
[1751299602909,0.97614714,107590.0,107580.0,0.67361525]
[1751299603310,0.97614714,107590.0,107580.0,0.98361525]
[1751299604010,1.4730145,107590.0,107580.0,0.98361525]
[1751299604211,1.78961714,107590.0,107580.0,0.98361525]
[1751299604508,1.78961714,107590.0,107580.0,0.96935612]
[1751299605009,1.78961714,107590.0,107580.0,0.67275612]
[1751299607310,1.78961714,107590.0,107580.0,0.70945149]
[1751299609409,1.4730145,107590.0,107580.0,0.70945149]
[1751299612711,1.78961714,107590.0,107580.0,0.70945149]
[1751299613213,1.4730145,107590.0,107580.0,0.70945149]
[1751299616916,1.4730145,107590.0,107580.0,0.72371049]
[1751299617519,1.4730145,107590.0,107580.0,1.04031313]
[1751299617817,1.4730145,107590.0,107580.0,1.09481313]
[1751299618518,1.4730145,107590.0,107580.0,0.77821049]
[1751299618818,1.4730145,107590.0,107580.0,1.09481313]
[1751299619520,1.4730145,107590.0,107580.0,0.77821049]
[1751299622120,1.4730145,107590.0,107580.0,0.76395149]
[1751299622418,1.4730145,107590.0,107580.0,0.44395149]
[1751299622612,1.78961714,107590.0,107580.0,0.70945149]
[1751299622814,1.78961714,107590.0,107580.0,0.66298759]
[1751299623015,1.4730145,107590.0,107580.0,0.37298759]
[1751299623218,1.78961714,107590.0,107580.0,0.70298759]
[1751299623515,0.1858618,107580.0,107570.0,0.58388406]
[1751299623819,1.74666444,107580.0,107570.0,0.63035336]
[1751299624619,1.94430744,107580.0,107570.0,0.58388406]
[1751299625019,2.4411748,107580.0,107570.0,0.58388406]
[1751299625221,2.75777744,107580.0,107570.0,0.58388406]
[1751299625620,2.4411748,107580.0,107570.0,0.58388406]
[1751299626625,2.4411748,107580.0,107570.0,0.59821715]
[1751299626921,2.75777744,107580.0,107570.0,0.36587495]
[1751299627123,2.85777744,107580.0,107570.0,0.36587495]
[1751299627314,2.85777744,107580.0,107570.0,0.3104954]
[1751299627618,2.85777744,107580.0,107570.0,0.32483052]
[1751299628123,2.85777744,107580.0,107570.0,0.3104954]
[1751299628623,2.85777744,107580.0,107570.0,0.0138954]
[1751299628818,2.85777744,107580.0,107570.0,0.1997745]
[1751299629022,0.1858791,107570.0,107560.0,0.05587153]
[1751299629222,1.27088174,107570.0,107560.0,0.07021643]
[1751299629614,1.27088174,107570.0,107560.0,0.25611283]
[1751299630020,1.27088174,107570.0,107560.0,0.01527457]
[1751299630222,2.08435174,107570.0,107560.0,0.20117097]
[1751299630928,1.88435174,107570.0,107560.0,0.20117097]
[1751299631226,1.88435174,107570.0,107560.0,0.01527457]
[1751299631622,1.88435174,107570.0,107560.0,0.20117097]
[1751299631822,1.88435174,107570.0,107560.0,0.20217097]
[1751299633325,1.88435174,107570.0,107560.0,0.18782607]
[1751299633627,1.88435174,107570.0,107560.0,0.01618716]
[1751299633924,1.89349284,107570.0,107560.0,0.01618716]
[1751299634120,1.89349284,107570.0,107560.0,0.00192967]
[1751299635328,1.89349284,107570.0,107560.0,0.18782607]
[1751299639430,1.89349284,107570.0,107560.0,0.00192967]
[1751299640334,1.53269284,107570.0,107560.0,0.00192967]
[1751299640529,2.25429284,107570.0,107560.0,0.18782607]
[1751299640933,2.25429284,107570.0,107560.0,0.20182047]
[1751299641734,1.9376902,107570.0,107560.0,0.20182047]
[1751299641930,2.25429284,107570.0,107560.0,0.20182047]
[1751299642233,2.97573284,107570.0,107560.0,0.58182047]
[1751299642826,2.6046302,107570.0,107560.0,0.20182047]
[1751299643036,2.6046302,107570.0,107560.0,0.63982047]
[1751299643333,2.6046302,107570.0,107560.0,0.30982047]
[1751299643534,2.6046302,107570.0,107560.0,0.62982047]
[1751299643828,2.6046302,107570.0,107560.0,0.65982047]
[1751299644234,2.5423491,107570.0,107560.0,0.65982047]
[1751299644425,2.5423491,107570.0,107560.0,0.71702047]
[1751299644731,1.8209491,107570.0,107560.0,1.03362311]
[1751299644935,2.4423091,107570.0,107560.0,1.03362311]
[1751299645234,2.4423091,107570.0,107560.0,0.68702047]
[1751299646734,2.4423091,107570.0,107560.0,0.7013414]
[1751299646936,2.4423091,107570.0,107560.0,0.68702047]